[Event "Early-Titled-Tuesday-Blitz-November-28-2023"]
[Site "Chess.com"]
[Date "2023.11.28"]
[Round "9"]
[White "mbachez"]
[Black "GMKrikor"]
[Result "0-1"]
[WhiteElo "2576"]
[BlackElo "2783"]
[TimeControl "180+1"]
[EndTime "9:51:30 PST"]
[Termination "GMKrikor won by resignation"]

1. e4 {[%clk 0:03:00.9]} 1... e6 {[%clk 0:02:59.2]} 2. d4 {[%clk 0:02:58.6]}
2... d5 {[%clk 0:02:58.7]} 3. Nd2 {[%clk 0:02:58.2]} 3... c5 {[%clk 0:02:57.3]}
4. Ngf3 {[%clk 0:02:57.3]} 4... cxd4 {[%clk 0:02:57]} 5. Nxd4 {[%clk 0:02:55.4]}
5... Nf6 {[%clk 0:02:56.9]} 6. exd5 {[%clk 0:02:54]} 6... Nxd5 {[%clk
0:02:54.7]} 7. N2f3 {[%clk 0:02:51.4]} 7... Be7 {[%clk 0:02:49.7]} 8. Bd3 {[%clk
0:02:48.5]} 8... Nb4 {[%clk 0:02:47.1]} 9. Be2 {[%clk 0:02:44.2]} 9... e5 {[%clk
0:02:32.9]} 10. Nb5 {[%clk 0:02:43.3]} 10... a6 {[%clk 0:01:48.4]} 11. Qxd8+
{[%clk 0:02:18.4]} 11... Kxd8 {[%clk 0:01:47.8]} 12. Na3 {[%clk 0:02:15.2]}
12... N8c6 {[%clk 0:01:40.3]} 13. Bd2 {[%clk 0:02:13.9]} 13... Kc7 {[%clk
0:01:35.7]} 14. O-O-O {[%clk 0:02:11.8]} 14... Nxa2+ {[%clk 0:01:25.3]} 15. Kb1
{[%clk 0:02:11.7]} 15... Nab4 {[%clk 0:01:26.2]} 16. Bc4 {[%clk 0:02:10.9]}
16... f6 {[%clk 0:01:17.9]} 17. Be3 {[%clk 0:02:00.9]} 17... b5 {[%clk
0:01:13.6]} 18. Bb3 {[%clk 0:01:57.5]} 18... Rd8 {[%clk 0:00:53.1]} 19. Kc1
{[%clk 0:01:48.4]} 19... Bf5 {[%clk 0:00:46.5]} 20. Nh4 {[%clk 0:01:46.2]} 20...
Bg4 {[%clk 0:00:46.8]} 21. f3 {[%clk 0:01:45.1]} 21... Bc8 {[%clk 0:00:42.8]}
22. Rxd8 {[%clk 0:01:36.2]} 22... Nxd8 {[%clk 0:00:39.4]} 23. f4 {[%clk
0:01:27.6]} 23... Ndc6 {[%clk 0:00:24.3]} 24. fxe5 {[%clk 0:01:21.4]} 24... Nxe5
{[%clk 0:00:23.6]} 25. Re1 {[%clk 0:01:15.7]} 25... Nbc6 {[%clk 0:00:18.9]} 26.
Bd5 {[%clk 0:01:11.4]} 26... Bd7 {[%clk 0:00:16.9]} 27. Nf3 {[%clk 0:01:09.2]}
27... Rd8 {[%clk 0:00:15.4]} 28. Nxe5 {[%clk 0:01:02.9]} 28... Nxe5 {[%clk
0:00:15.4]} 29. Be4 {[%clk 0:00:59.5]} 29... g6 {[%clk 0:00:14.2]} 30. Bf4
{[%clk 0:00:59.4]} 30... Bd6 {[%clk 0:00:14.5]} 31. Rd1 {[%clk 0:00:59.2]} 31...
Bc6 {[%clk 0:00:14]} 32. Bxc6 {[%clk 0:00:58.5]} 32... Nxc6 {[%clk 0:00:14.6]}
33. Bxd6+ {[%clk 0:00:55.4]} 33... Rxd6 {[%clk 0:00:15.5]} 34. Re1 {[%clk
0:00:54.8]} 34... Ne5 {[%clk 0:00:16.2]} 35. Nb1 {[%clk 0:00:53.3]} 35... h5
{[%clk 0:00:14.4]} 36. Nd2 {[%clk 0:00:52.3]} 36... Re6 {[%clk 0:00:13.8]} 37.
Kd1 {[%clk 0:00:50]} 37... Kd7 {[%clk 0:00:13.3]} 38. Ne4 {[%clk 0:00:49.3]}
38... Ke7 {[%clk 0:00:12.8]} 39. Nc5 {[%clk 0:00:48.6]} 39... Rd6+ {[%clk
0:00:08.9]} 40. Kc1 {[%clk 0:00:48.8]} 40... Kf7 {[%clk 0:00:09.6]} 41. Ne4
{[%clk 0:00:48]} 41... Rc6 {[%clk 0:00:09.7]} 42. Rf1 {[%clk 0:00:48]} 42... Ke7
{[%clk 0:00:08.6]} 43. Re1 {[%clk 0:00:47.5]} 43... Nd3+ {[%clk 0:00:08.9]} 0-1

[Event "Early-Titled-Tuesday-Blitz-November-28-2023"]
[Site "Chess.com"]
[Date "2023.11.28"]
[Round "9"]
[White "SashaKuzhilniy"]
[Black "Shield12"]
[Result "1-0"]
[WhiteElo "2648"]
[BlackElo "2911"]
[TimeControl "180+1"]
[EndTime "9:51:32 PST"]
[Termination "SashaKuzhilniy won by resignation"]

1. d4 {[%clk 0:03:00.9]} 1... Nf6 {[%clk 0:02:47]} 2. Nf3 {[%clk 0:02:58.6]}
2... d5 {[%clk 0:02:47]} 3. c3 {[%clk 0:02:58.3]} 3... c5 {[%clk 0:02:45.5]} 4.
e3 {[%clk 0:02:57.5]} 4... e6 {[%clk 0:02:44.6]} 5. Nbd2 {[%clk 0:02:57.6]} 5...
Nbd7 {[%clk 0:02:44.8]} 6. Bd3 {[%clk 0:02:57.1]} 6... b6 {[%clk 0:02:45.4]} 7.
O-O {[%clk 0:02:55.4]} 7... Bb7 {[%clk 0:02:45.8]} 8. b3 {[%clk 0:02:56.1]} 8...
Bd6 {[%clk 0:02:45.2]} 9. Bb2 {[%clk 0:02:55.3]} 9... O-O {[%clk 0:02:45.2]} 10.
Qe2 {[%clk 0:02:48.9]} 10... e5 {[%clk 0:02:45.4]} 11. dxe5 {[%clk 0:02:48.1]}
11... Nxe5 {[%clk 0:02:45.6]} 12. Nxe5 {[%clk 0:02:48]} 12... Bxe5 {[%clk
0:02:46]} 13. Nf3 {[%clk 0:02:40.5]} 13... Bc7 {[%clk 0:02:44.2]} 14. c4 {[%clk
0:02:41]} 14... Qd6 {[%clk 0:02:40.4]} 15. cxd5 {[%clk 0:02:38.7]} 15... Nxd5
{[%clk 0:02:35.9]} 16. Rad1 {[%clk 0:02:34.4]} 16... Qe7 {[%clk 0:02:33.3]} 17.
Qc2 {[%clk 0:02:25.8]} 17... Nb4 {[%clk 0:02:22.5]} 18. Bxh7+ {[%clk 0:02:21.1]}
18... Kh8 {[%clk 0:02:21.8]} 19. Qf5 {[%clk 0:02:20.7]} 19... Bxf3 {[%clk
0:02:20.6]} 20. Qh3 {[%clk 0:01:56]} 20... Qg5 {[%clk 0:01:36.7]} 21. Bg6+
{[%clk 0:01:47]} 21... Bh5 {[%clk 0:01:35.7]} 22. Bxh5 {[%clk 0:01:29.9]} 22...
Kg8 {[%clk 0:01:35]} 23. Rd7 {[%clk 0:01:27]} 23... Bd8 {[%clk 0:01:26.5]} 24.
Bxf7+ {[%clk 0:01:17]} 24... Rxf7 {[%clk 0:01:25.7]} 25. Rxf7 {[%clk 0:01:17.9]}
25... Kxf7 {[%clk 0:01:24.8]} 26. Qf3+ {[%clk 0:01:17.8]} 26... Bf6 {[%clk
0:01:24.7]} 27. Bxf6 {[%clk 0:01:15]} 27... Qd5 {[%clk 0:01:25.3]} 28. Qxd5+
{[%clk 0:01:05.9]} 28... Nxd5 {[%clk 0:01:26.2]} 29. Bb2 {[%clk 0:01:05.4]}
29... Nb4 {[%clk 0:01:26.1]} 30. Rd1 {[%clk 0:01:05.5]} 30... Nxa2 {[%clk
0:01:22.4]} 31. Rd7+ {[%clk 0:01:05.5]} 31... Ke6 {[%clk 0:01:22.9]} 32. Rxg7
{[%clk 0:01:05.1]} 32... Nb4 {[%clk 0:01:15.5]} 33. h4 {[%clk 0:01:02.8]} 33...
Nd3 {[%clk 0:01:13.9]} 34. Bc3 {[%clk 0:00:55.1]} 34... b5 {[%clk 0:01:14]} 35.
h5 {[%clk 0:00:48.6]} 35... b4 {[%clk 0:01:14.4]} 36. Ba1 {[%clk 0:00:48.6]}
36... c4 {[%clk 0:01:09.5]} 37. bxc4 {[%clk 0:00:44.8]} 37... a5 {[%clk
0:00:52.3]} 38. h6 {[%clk 0:00:41.6]} 38... b3 {[%clk 0:00:46]} 39. h7 {[%clk
0:00:33]} 39... Rh8 {[%clk 0:00:25.7]} 40. Re7+ {[%clk 0:00:24.2]} 40... Kxe7
{[%clk 0:00:25.4]} 41. Bxh8 {[%clk 0:00:24.9]} 41... Kf7 {[%clk 0:00:25.7]} 42.
Bc3 {[%clk 0:00:23.9]} 42... b2 {[%clk 0:00:23.3]} 43. Bxb2 {[%clk 0:00:23.2]}
1-0

[Event "Early-Titled-Tuesday-Blitz-November-28-2023"]
[Site "Chess.com"]
[Date "2023.11.28"]
[Round "9"]
[White "vovachesss"]
[Black "Andrei_Skvortsov"]
[Result "1-0"]
[WhiteElo "2861"]
[BlackElo "2732"]
[TimeControl "180+1"]
[EndTime "9:51:35 PST"]
[Termination "vovachesss won by resignation"]

1. d4 {[%clk 0:03:00.9]} 1... g6 {[%clk 0:02:56.4]} 2. e4 {[%clk 0:03:00.3]}
2... Bg7 {[%clk 0:02:57]} 3. h4 {[%clk 0:02:56.2]} 3... d5 {[%clk 0:02:49.5]} 4.
e5 {[%clk 0:02:54.3]} 4... h5 {[%clk 0:02:47.5]} 5. c3 {[%clk 0:02:50.5]} 5...
Nh6 {[%clk 0:02:43.7]} 6. Bd3 {[%clk 0:02:46.2]} 6... c6 {[%clk 0:02:42.9]} 7.
Ne2 {[%clk 0:02:46.3]} 7... a5 {[%clk 0:02:33.4]} 8. Bg5 {[%clk 0:02:40.6]} 8...
Qb6 {[%clk 0:02:32.6]} 9. Qc2 {[%clk 0:02:32]} 9... Bf5 {[%clk 0:02:27]} 10. Nf4
{[%clk 0:01:52.8]} 10... e6 {[%clk 0:02:15]} 11. Nd2 {[%clk 0:01:37.7]} 11...
Nd7 {[%clk 0:02:08]} 12. Bxh6 {[%clk 0:01:13.3]} 12... Bxh6 {[%clk 0:01:57.2]}
13. Bxf5 {[%clk 0:01:12.9]} 13... gxf5 {[%clk 0:01:55.3]} 14. g3 {[%clk
0:00:49.9]} 14... c5 {[%clk 0:01:51.6]} 15. Nf3 {[%clk 0:00:49.7]} 15... cxd4
{[%clk 0:01:48.6]} 16. cxd4 {[%clk 0:00:49.9]} 16... Qb4+ {[%clk 0:01:45.7]} 17.
Kf1 {[%clk 0:00:37.6]} 17... Bxf4 {[%clk 0:01:30.9]} 18. gxf4 {[%clk 0:00:38.5]}
18... O-O {[%clk 0:01:21.5]} 19. Qd1 {[%clk 0:00:28.3]} 19... Qb5+ {[%clk
0:00:59.9]} 20. Kg2 {[%clk 0:00:28]} 20... f6 {[%clk 0:00:47.9]} 21. Kh3 {[%clk
0:00:25.6]} 21... Qxb2 {[%clk 0:00:35.4]} 22. Rb1 {[%clk 0:00:17.3]} 22... Qxf2
{[%clk 0:00:30.5]} 23. Rg1+ {[%clk 0:00:17.5]} 23... Kf7 {[%clk 0:00:19]} 24.
Rxb7 {[%clk 0:00:17.3]} 24... Ke8 {[%clk 0:00:17.1]} 25. Rg3 {[%clk 0:00:06.7]}
25... a4 {[%clk 0:00:11.8]} 26. Qc1 {[%clk 0:00:06.2]} 26... Rf7 {[%clk
0:00:11.1]} 27. Qc6 {[%clk 0:00:06.2]} 27... Re7 {[%clk 0:00:06.8]} 28. exf6
{[%clk 0:00:04.9]} 28... Rf7 {[%clk 0:00:02.4]} 29. Rg8+ {[%clk 0:00:05.1]} 1-0

[Event "Early-Titled-Tuesday-Blitz-November-28-2023"]
[Site "Chess.com"]
[Date "2023.11.28"]
[Round "9"]
[White "tetrix83"]
[Black "DenisQ"]
[Result "0-1"]
[WhiteElo "2532"]
[BlackElo "2686"]
[TimeControl "180+1"]
[EndTime "9:51:36 PST"]
[Termination "DenisQ won on time"]

1. e4 {[%clk 0:03:00.9]} 1... c6 {[%clk 0:02:59.1]} 2. d4 {[%clk 0:03:00]} 2...
d5 {[%clk 0:02:59.8]} 3. exd5 {[%clk 0:03:00.5]} 3... cxd5 {[%clk 0:02:59.7]} 4.
Bd3 {[%clk 0:03:01.1]} 4... Nc6 {[%clk 0:02:59.2]} 5. c3 {[%clk 0:03:01.7]} 5...
Nf6 {[%clk 0:02:59.5]} 6. h3 {[%clk 0:03:01]} 6... e5 {[%clk 0:02:58.9]} 7. dxe5
{[%clk 0:02:59.7]} 7... Nxe5 {[%clk 0:02:59.8]} 8. Nf3 {[%clk 0:03:00.1]} 8...
Nxd3+ {[%clk 0:02:59.5]} 9. Qxd3 {[%clk 0:03:00.4]} 9... Bc5 {[%clk 0:02:58.6]}
10. O-O {[%clk 0:02:52.7]} 10... O-O {[%clk 0:02:57.9]} 11. Be3 {[%clk
0:02:47.6]} 11... Bxe3 {[%clk 0:02:57.2]} 12. Qxe3 {[%clk 0:02:47.7]} 12... Re8
{[%clk 0:02:57.5]} 13. Qd3 {[%clk 0:02:46.6]} 13... Qb6 {[%clk 0:02:56.9]} 14.
Qc2 {[%clk 0:02:35.7]} 14... Ne4 {[%clk 0:02:46.6]} 15. Nd4 {[%clk 0:02:26.4]}
15... Bd7 {[%clk 0:02:38.6]} 16. Nd2 {[%clk 0:02:19.5]} 16... Rac8 {[%clk
0:02:37.9]} 17. N2f3 {[%clk 0:02:16.6]} 17... h6 {[%clk 0:02:32.5]} 18. Rfe1
{[%clk 0:02:10.8]} 18... a5 {[%clk 0:02:23.4]} 19. Qb3 {[%clk 0:01:58.6]} 19...
Qxb3 {[%clk 0:02:17.2]} 20. axb3 {[%clk 0:01:51]} 20... b6 {[%clk 0:02:16.8]}
21. Red1 {[%clk 0:01:35.2]} 21... Nc5 {[%clk 0:02:07]} 22. Re1 {[%clk
0:01:21.4]} 22... Nd3 {[%clk 0:02:01.4]} 23. Rxe8+ {[%clk 0:01:21.3]} 23... Rxe8
{[%clk 0:02:00.6]} 24. Rd1 {[%clk 0:01:20.3]} 24... Nc5 {[%clk 0:01:48.6]} 25.
Kf1 {[%clk 0:01:15.1]} 25... Bc8 {[%clk 0:01:43]} 26. Re1 {[%clk 0:00:57]} 26...
Ba6+ {[%clk 0:01:36.8]} 27. Kg1 {[%clk 0:00:57.2]} 27... Re4 {[%clk 0:01:34.8]}
28. Ra1 {[%clk 0:00:43.6]} 28... Bd3 {[%clk 0:01:21]} 29. g4 {[%clk 0:00:29.1]}
29... g5 {[%clk 0:00:49.7]} 30. Kg2 {[%clk 0:00:28.5]} 30... Ne6 {[%clk
0:00:45.1]} 31. Nxe6 {[%clk 0:00:23]} 31... fxe6 {[%clk 0:00:46]} 32. Kg3 {[%clk
0:00:20.5]} 32... Re2 {[%clk 0:00:43.4]} 33. Re1 {[%clk 0:00:19.7]} 33... Rxb2
{[%clk 0:00:39.4]} 34. Rxe6 {[%clk 0:00:19.3]} 34... Rxb3 {[%clk 0:00:39.8]} 35.
Rxh6 {[%clk 0:00:17.2]} 35... a4 {[%clk 0:00:38.1]} 36. Nd4 {[%clk 0:00:12.5]}
36... Rxc3 {[%clk 0:00:36.4]} 37. Rxb6 {[%clk 0:00:11.5]} 37... a3 {[%clk
0:00:36.3]} 38. Rb8+ {[%clk 0:00:11]} 38... Kf7 {[%clk 0:00:36.6]} 39. Ra8
{[%clk 0:00:10.8]} 39... Bc4+ {[%clk 0:00:36.9]} 40. f3 {[%clk 0:00:10.2]} 40...
a2 {[%clk 0:00:37.3]} 41. h4 {[%clk 0:00:09.1]} 41... gxh4+ {[%clk 0:00:37]} 42.
Kxh4 {[%clk 0:00:09]} 42... Rc1 {[%clk 0:00:37.6]} 43. Ra7+ {[%clk 0:00:07.4]}
43... Ke8 {[%clk 0:00:36.9]} 0-1

[Event "Early-Titled-Tuesday-Blitz-November-28-2023"]
[Site "Chess.com"]
[Date "2023.11.28"]
[Round "9"]
[White "MITerryble"]
[Black "JSPrepz"]
[Result "1-0"]
[WhiteElo "2964"]
[BlackElo "2839"]
[TimeControl "180+1"]
[EndTime "9:51:37 PST"]
[Termination "MITerryble won by resignation"]

1. d4 {[%clk 0:03:00.9]} 1... d5 {[%clk 0:02:58.7]} 2. Bg5 {[%clk 0:03:00.8]}
2... f6 {[%clk 0:02:57.7]} 3. Bc1 {[%clk 0:02:58.7]} 3... c5 {[%clk 0:02:56.7]}
4. dxc5 {[%clk 0:02:51.4]} 4... e5 {[%clk 0:02:52.9]} 5. e4 {[%clk 0:02:51.7]}
5... dxe4 {[%clk 0:02:42.2]} 6. Qxd8+ {[%clk 0:02:51.3]} 6... Kxd8 {[%clk
0:02:42.3]} 7. Nc3 {[%clk 0:02:52.2]} 7... f5 {[%clk 0:02:32.9]} 8. Bg5+ {[%clk
0:02:42.7]} 8... Be7 {[%clk 0:01:58.8]} 9. O-O-O+ {[%clk 0:02:42.5]} 9... Bd7
{[%clk 0:01:56.9]} 10. Bxe7+ {[%clk 0:02:34.5]} 10... Nxe7 {[%clk 0:01:57.8]}
11. g4 {[%clk 0:02:17.1]} 11... g6 {[%clk 0:01:58.1]} 12. Bc4 {[%clk 0:02:08.2]}
12... Kc7 {[%clk 0:01:47.2]} 13. Nge2 {[%clk 0:02:01.3]} 13... Bc6 {[%clk
0:01:38.5]} 14. gxf5 {[%clk 0:01:53.5]} 14... gxf5 {[%clk 0:01:39.4]} 15. Rhg1
{[%clk 0:01:52.2]} 15... Nd7 {[%clk 0:01:29.3]} 16. Rg7 {[%clk 0:01:52]} 16...
Rae8 {[%clk 0:01:07.4]} 17. b4 {[%clk 0:01:52.2]} 17... a6 {[%clk 0:01:06]} 18.
a4 {[%clk 0:01:52.2]} 18... Nf6 {[%clk 0:00:48.4]} 19. b5 {[%clk 0:01:36.7]}
19... axb5 {[%clk 0:00:49.3]} 20. axb5 {[%clk 0:01:37.5]} 20... Bd7 {[%clk
0:00:49.9]} 21. Rd6 {[%clk 0:01:31.8]} 21... Nh5 {[%clk 0:00:45.9]} 22. Rxe7
{[%clk 0:01:19]} 22... Rxe7 {[%clk 0:00:46.5]} 23. Nd5+ {[%clk 0:01:19.5]} 23...
Kd8 {[%clk 0:00:47]} 24. c6 {[%clk 0:01:20.2]} 24... Rg7 {[%clk 0:00:42.2]} 25.
Ng3 {[%clk 0:01:03.6]} 25... bxc6 {[%clk 0:00:32.9]} 26. bxc6 {[%clk 0:01:00.5]}
26... Nxg3 {[%clk 0:00:30.8]} 27. hxg3 {[%clk 0:01:01.4]} 27... Ke8 {[%clk
0:00:09.2]} 28. cxd7+ {[%clk 0:00:59.4]} 28... Kd8 {[%clk 0:00:09.7]} 29. Bb5
{[%clk 0:00:58.6]} 29... Rg6 {[%clk 0:00:10.1]} 30. Rxg6 {[%clk 0:00:44.9]}
30... hxg6 {[%clk 0:00:11]} 31. c4 {[%clk 0:00:45.4]} 31... Rh1+ {[%clk
0:00:08.6]} 32. Kc2 {[%clk 0:00:43.6]} 32... Rh2 {[%clk 0:00:09.5]} 33. c5
{[%clk 0:00:42.8]} 33... Rxf2+ {[%clk 0:00:10.1]} 34. Kc3 {[%clk 0:00:43.5]}
34... Rf3+ {[%clk 0:00:09.9]} 35. Kb4 {[%clk 0:00:32.3]} 35... Rf2 {[%clk
0:00:10.3]} 36. c6 {[%clk 0:00:32.3]} 36... Rc2 {[%clk 0:00:10.5]} 37. Bc4
{[%clk 0:00:25.6]} 37... f4 {[%clk 0:00:07.5]} 38. gxf4 {[%clk 0:00:17.4]} 38...
exf4 {[%clk 0:00:08.4]} 39. Nxf4 {[%clk 0:00:18.2]} 39... e3 {[%clk 0:00:07.9]}
40. Ne6+ {[%clk 0:00:18.4]} 1-0

[Event "Early-Titled-Tuesday-Blitz-November-28-2023"]
[Site "Chess.com"]
[Date "2023.11.28"]
[Round "9"]
[White "GothamChess"]
[Black "Goffredo_Fofi"]
[Result "0-1"]
[WhiteElo "2645"]
[BlackElo "2481"]
[TimeControl "180+1"]
[EndTime "9:51:38 PST"]
[Termination "Goffredo_Fofi won on time"]

1. e4 {[%clk 0:02:44.2]} 1... g6 {[%clk 0:03:00.9]} 2. d4 {[%clk 0:02:40.5]}
2... Bg7 {[%clk 0:03:01.2]} 3. Nf3 {[%clk 0:02:40.9]} 3... c6 {[%clk 0:03:01]}
4. Nc3 {[%clk 0:02:39.4]} 4... d5 {[%clk 0:03:01.3]} 5. h3 {[%clk 0:02:39.8]}
5... dxe4 {[%clk 0:03:01.2]} 6. Nxe4 {[%clk 0:02:40]} 6... Nf6 {[%clk
0:03:02.1]} 7. Nxf6+ {[%clk 0:02:38.5]} 7... exf6 {[%clk 0:03:03]} 8. Qe2+
{[%clk 0:02:33.1]} 8... Be6 {[%clk 0:02:32.7]} 9. Bf4 {[%clk 0:02:22.1]} 9...
O-O {[%clk 0:02:32.2]} 10. Qd2 {[%clk 0:02:11.6]} 10... Re8 {[%clk 0:02:31.3]}
11. Be2 {[%clk 0:02:11.6]} 11... Bc4 {[%clk 0:02:14.4]} 12. Be3 {[%clk
0:02:11.7]} 12... Bxe2 {[%clk 0:02:14.8]} 13. Qxe2 {[%clk 0:02:11.2]} 13... f5
{[%clk 0:02:15.7]} 14. g3 {[%clk 0:02:09.9]} 14... c5 {[%clk 0:02:07.6]} 15.
O-O-O {[%clk 0:02:06.8]} 15... cxd4 {[%clk 0:02:07.3]} 16. Qc4 {[%clk
0:01:56.4]} 16... Nc6 {[%clk 0:01:59.7]} 17. Nxd4 {[%clk 0:01:34.6]} 17... Bxd4
{[%clk 0:01:28.6]} 18. Bxd4 {[%clk 0:01:28.1]} 18... Re4 {[%clk 0:01:28.7]} 19.
c3 {[%clk 0:01:04.6]} 19... Rc8 {[%clk 0:01:28.7]} 20. Kb1 {[%clk 0:01:05.2]}
20... Qe8 {[%clk 0:01:08.1]} 21. Qa4 {[%clk 0:00:48.5]} 21... Nxd4 {[%clk
0:00:56.9]} 22. Qxe8+ {[%clk 0:00:47.5]} 22... Rcxe8 {[%clk 0:00:57.4]} 23. cxd4
{[%clk 0:00:38.4]} 23... Rd8 {[%clk 0:00:49.4]} 24. d5 {[%clk 0:00:34.2]} 24...
Re5 {[%clk 0:00:49.7]} 25. Rhe1 {[%clk 0:00:34.8]} 25... Rdxd5 {[%clk
0:00:42.5]} 26. Rxe5 {[%clk 0:00:24.2]} 26... Rxe5 {[%clk 0:00:40.3]} 27. Rd7
{[%clk 0:00:12.8]} 27... Re1+ {[%clk 0:00:34.8]} 28. Kc2 {[%clk 0:00:13.1]}
28... Re2+ {[%clk 0:00:35.5]} 29. Kc1 {[%clk 0:00:12.4]} 29... Rxf2 {[%clk
0:00:32.4]} 30. Rxb7 {[%clk 0:00:13.1]} 30... Rf3 {[%clk 0:00:27.8]} 31. Rxa7
{[%clk 0:00:10.4]} 31... Rxg3 {[%clk 0:00:28]} 32. h4 {[%clk 0:00:09.9]} 32...
Kf8 {[%clk 0:00:27.1]} 33. a4 {[%clk 0:00:06.9]} 33... Rg4 {[%clk 0:00:23]} 34.
h5 {[%clk 0:00:06.1]} 34... gxh5 {[%clk 0:00:16.6]} 35. Ra5 {[%clk 0:00:05.2]}
35... Rf4 {[%clk 0:00:16.9]} 36. Ra8+ {[%clk 0:00:03.3]} 36... Kg7 {[%clk
0:00:15.5]} 0-1

[Event "Early-Titled-Tuesday-Blitz-November-28-2023"]
[Site "Chess.com"]
[Date "2023.11.28"]
[Round "9"]
[White "ilushka"]
[Black "Pingah9"]
[Result "0-1"]
[WhiteElo "2411"]
[BlackElo "2539"]
[TimeControl "180+1"]
[EndTime "9:51:38 PST"]
[Termination "Pingah9 won on time"]

1. Nf3 {[%clk 0:03:00.9]} 1... g6 {[%clk 0:02:57.8]} 2. e4 {[%clk 0:02:59]} 2...
Bg7 {[%clk 0:02:58.1]} 3. d4 {[%clk 0:02:59.6]} 3... d6 {[%clk 0:02:58.4]} 4. c3
{[%clk 0:02:59.4]} 4... Nd7 {[%clk 0:02:58.5]} 5. Bd3 {[%clk 0:02:59.9]} 5... e6
{[%clk 0:02:58.7]} 6. h3 {[%clk 0:02:59.1]} 6... a6 {[%clk 0:02:58.3]} 7. O-O
{[%clk 0:02:58.8]} 7... Ne7 {[%clk 0:02:58.4]} 8. Ne1 {[%clk 0:02:55.8]} 8...
O-O {[%clk 0:02:57.5]} 9. f4 {[%clk 0:02:56.4]} 9... Nb6 {[%clk 0:02:49.9]} 10.
Nf3 {[%clk 0:02:56.1]} 10... c5 {[%clk 0:02:48.9]} 11. Be3 {[%clk 0:02:52.1]}
11... Qc7 {[%clk 0:02:43.9]} 12. Na3 {[%clk 0:02:50.1]} 12... c4 {[%clk
0:02:39.9]} 13. Be2 {[%clk 0:02:40.8]} 13... Bd7 {[%clk 0:02:39.5]} 14. e5
{[%clk 0:02:33.4]} 14... Ned5 {[%clk 0:02:31.6]} 15. Bd2 {[%clk 0:02:31.9]}
15... Rac8 {[%clk 0:02:28.9]} 16. exd6 {[%clk 0:02:27]} 16... Qxd6 {[%clk
0:02:29.8]} 17. Ne5 {[%clk 0:02:27.3]} 17... Rfd8 {[%clk 0:02:19.6]} 18. Naxc4
{[%clk 0:02:16.4]} 18... Nxc4 {[%clk 0:02:15.3]} 19. Nxc4 {[%clk 0:02:17.3]}
19... Qe7 {[%clk 0:02:09.4]} 20. Ne5 {[%clk 0:02:16.7]} 20... Be8 {[%clk
0:02:07.8]} 21. Qb3 {[%clk 0:02:07.6]} 21... b5 {[%clk 0:02:05.7]} 22. Bf3
{[%clk 0:02:05.5]} 22... Nb6 {[%clk 0:02:04.6]} 23. Rae1 {[%clk 0:02:02.7]}
23... Qc7 {[%clk 0:01:44.6]} 24. g4 {[%clk 0:01:52.2]} 24... a5 {[%clk
0:01:40.3]} 25. Qd1 {[%clk 0:01:46.6]} 25... b4 {[%clk 0:01:34]} 26. f5 {[%clk
0:01:05.5]} 26... exf5 {[%clk 0:01:29.7]} 27. gxf5 {[%clk 0:01:06.4]} 27... Na4
{[%clk 0:01:18.8]} 28. fxg6 {[%clk 0:01:02.6]} 28... hxg6 {[%clk 0:01:18.4]} 29.
Qb3 {[%clk 0:00:39.9]} 29... Nxb2 {[%clk 0:01:11.8]} 30. Bd5 {[%clk 0:00:17.2]}
30... Bxe5 {[%clk 0:01:07]} 31. Rxe5 {[%clk 0:00:12.7]} 31... bxc3 {[%clk
0:01:06.1]} 32. Rxe8+ {[%clk 0:00:08.6]} 32... Rxe8 {[%clk 0:01:04.2]} 33. Rxf7
{[%clk 0:00:05.9]} 33... Qg3+ {[%clk 0:01:03.7]} 34. Kf1 {[%clk 0:00:05.3]}
34... Rf8 {[%clk 0:00:45.5]} 35. Bxc3 {[%clk 0:00:02.5]} 35... Qxc3 {[%clk
0:00:38.1]} 36. Rf3+ {[%clk 0:00:01.1]} 36... Kg7 {[%clk 0:00:36.7]} 37. Qb7+
{[%clk 0:00:01.3]} 37... Qc7 {[%clk 0:00:29.2]} 0-1

[Event "Early-Titled-Tuesday-Blitz-November-28-2023"]
[Site "Chess.com"]
[Date "2023.11.28"]
[Round "9"]
[White "Der_Balak_3Halak"]
[Black "kkpanu9"]
[Result "1-0"]
[WhiteElo "2329"]
[BlackElo "2090"]
[TimeControl "180+1"]
[EndTime "9:51:40 PST"]
[Termination "Der_Balak_3Halak won on time"]

1. e4 {[%clk 0:03:00.9]} 1... c5 {[%clk 0:02:59.2]} 2. Nf3 {[%clk 0:03:00.3]}
2... d6 {[%clk 0:02:59.7]} 3. Bb5+ {[%clk 0:02:59.4]} 3... Bd7 {[%clk
0:02:57.9]} 4. Bxd7+ {[%clk 0:02:59.4]} 4... Qxd7 {[%clk 0:02:57.2]} 5. O-O
{[%clk 0:03:00.3]} 5... e5 {[%clk 0:02:53.5]} 6. c3 {[%clk 0:02:59.6]} 6... Ne7
{[%clk 0:02:48.6]} 7. d4 {[%clk 0:02:59.8]} 7... cxd4 {[%clk 0:02:48.1]} 8. cxd4
{[%clk 0:03:00.7]} 8... Nbc6 {[%clk 0:02:42.1]} 9. Nc3 {[%clk 0:02:56]} 9...
exd4 {[%clk 0:02:13.7]} 10. Nxd4 {[%clk 0:02:54.6]} 10... Nxd4 {[%clk
0:02:14.1]} 11. Qxd4 {[%clk 0:02:54.2]} 11... Nc6 {[%clk 0:02:13.4]} 12. Qe3
{[%clk 0:02:43.9]} 12... Be7 {[%clk 0:02:11.4]} 13. Nd5 {[%clk 0:02:41.8]} 13...
O-O {[%clk 0:02:08.1]} 14. Qg3 {[%clk 0:02:40.1]} 14... Kh8 {[%clk 0:01:56.1]}
15. Bf4 {[%clk 0:02:29.9]} 15... Rfd8 {[%clk 0:01:45.4]} 16. Rad1 {[%clk
0:02:26.8]} 16... Bf8 {[%clk 0:01:45.2]} 17. h4 {[%clk 0:01:45.5]} 17... Ne7
{[%clk 0:01:32.9]} 18. Ne3 {[%clk 0:01:19.6]} 18... Ng6 {[%clk 0:01:24.3]} 19.
Nf5 {[%clk 0:01:02]} 19... Nxf4 {[%clk 0:01:18.6]} 20. Qxf4 {[%clk 0:01:02.9]}
20... Qe6 {[%clk 0:00:52.3]} 21. b3 {[%clk 0:00:48.3]} 21... g6 {[%clk
0:00:50.4]} 22. Ne3 {[%clk 0:00:44]} 22... Bg7 {[%clk 0:00:49.6]} 23. h5 {[%clk
0:00:43.9]} 23... Be5 {[%clk 0:00:44.4]} 24. Qf3 {[%clk 0:00:38.7]} 24... gxh5
{[%clk 0:00:35]} 25. Qxh5 {[%clk 0:00:39.6]} 25... Rg8 {[%clk 0:00:34.8]} 26.
Nf5 {[%clk 0:00:28.2]} 26... Qg6 {[%clk 0:00:18.5]} 27. Qxg6 {[%clk 0:00:27.6]}
27... Rxg6 {[%clk 0:00:17.8]} 28. f4 {[%clk 0:00:27.5]} 28... Bb2 {[%clk
0:00:12]} 29. Rxd6 {[%clk 0:00:24.1]} 29... Ba3 {[%clk 0:00:10.1]} 30. Rxg6
{[%clk 0:00:20.4]} 30... hxg6 {[%clk 0:00:08.8]} 31. Ng3 {[%clk 0:00:19.2]}
31... Kg7 {[%clk 0:00:08.1]} 32. Rd1 {[%clk 0:00:17.4]} 32... Rc8 {[%clk
0:00:06.8]} 33. Rd2 {[%clk 0:00:14.7]} 33... Rc1+ {[%clk 0:00:04.4]} 34. Kf2
{[%clk 0:00:15.3]} 34... Bc5+ {[%clk 0:00:04.3]} 35. Ke2 {[%clk 0:00:15.3]}
35... Rg1 {[%clk 0:00:02.7]} 36. Kf3 {[%clk 0:00:15.9]} 36... Rf1+ {[%clk
0:00:02.8]} 37. Nxf1 {[%clk 0:00:15.6]} 1-0